lending/lending_fUSD_20240507
["ID","MTS","AMOUNT","RATE_DAILY","PERIOD"]
[326563321,1715109089894,-500.0,0.00021095,2]
[326563322,1715109089903,-862.97,0.00021095,2]
[326563323,1715109089912,-1652.38,0.00021095,2]
[326563324,1715109089922,-2159.29,0.00021095,2]
[326563325,1715109089931,-669.45,0.00021095,2]
[326563326,1715109089941,-500.0,0.00021095,2]
[326563327,1715109089951,-500.0,0.00021095,2]
[326563328,1715109089961,-500.0,0.00021095,2]
[326563329,1715109089971,-544.82,0.00021095,2]
[326563330,1715109089981,-541.77,0.00021095,2]
[326563331,1715109089991,-500.0,0.00021095,2]
[326563332,1715109090001,-558.7,0.00021095,2]
[326563333,1715109090011,-626.2,0.00021095,2]
[326563334,1715109090021,-848.65,0.00021095,2]
[326563335,1715109090031,-1005.88,0.00021095,2]
[326563336,1715109090040,-13278.13,0.00021095,2]
[326563337,1715109090050,-500.0,0.00021095,2]
[326563338,1715109090060,-500.0,0.00021095,2]
[326563339,1715109090069,-511.77904714,0.00021095,2]
[326563340,1715109090079,-500.0,0.00021095,2]
[326563341,1715109090088,-1307.7,0.00021095,2]
[326563342,1715109090098,-593.67,0.00021095,2]
[326563343,1715109090107,-783.4,0.00021095,2]
[326563344,1715109090117,-500.0,0.00021095,2]
[326563345,1715109090127,-20174.99,0.00021095,2]
[326563346,1715109090137,-858.71,0.00021095,2]
[326563347,1715109090147,-811.78,0.00021095,2]
[326563348,1715109090156,-2207.78,0.00021095,2]
[326563349,1715109090167,-1098.34,0.00021095,2]
[326563350,1715109090176,-500.0,0.00021095,2]
[326563351,1715109090186,-581.24,0.00021095,2]
[326563352,1715109090196,-775.24,0.00021095,2]
[326563353,1715109090206,-640.04,0.00021095,2]
[326563354,1715109090216,-681.51,0.00021095,2]
[326563355,1715109090226,-500.0,0.00021095,2]
[326563356,1715109090238,-500.0,0.00021095,2]
[326563357,1715109090248,-1322.4,0.00021095,2]
[326563358,1715109090258,-500.0,0.00021095,2]
[326563359,1715109090268,-1309.95,0.00021095,2]
[326563360,1715109090278,-500.0,0.00021095,2]
[326563361,1715109090288,-500.0,0.00021095,2]
[326563362,1715109090297,-1656.54,0.00021095,2]
[326563363,1715109090307,-913.41,0.00021095,2]
[326563364,1715109090317,-500.0,0.00021095,2]
[326563365,1715109090327,-500.0,0.00021095,2]
[326563366,1715109090337,-2525.7,0.00021095,2]
[326563367,1715109090346,-1016.48,0.00021095,2]
[326563368,1715109090356,-500.0,0.00021095,2]
[326563369,1715109090366,-500.0,0.00021095,2]
[326563370,1715109090376,-590.94,0.00021095,2]
[326563371,1715109090386,-2176.15,0.00021095,2]
[326563372,1715109090396,-1488.9,0.00021095,2]
[326563373,1715109090406,-1089.01,0.00021095,2]
[326563374,1715109090415,-500.0,0.00021095,2]
[326563375,1715109090424,-934.18,0.00021095,2]
[326563376,1715109090434,-500.0,0.00021095,2]
[326563377,1715109090444,-1223.92,0.00021095,2]
[326563378,1715109090453,-702.3,0.00021095,2]
[326563379,1715109090464,-500.0,0.00021095,2]
[326563380,1715109090474,-1123.02,0.00021095,2]
[326563381,1715109090483,-589.37,0.00021095,2]
[326563382,1715109090493,-532.89833648,0.00021095,2]
[326563383,1715109090503,-500.0,0.00021095,2]
[326563384,1715109090513,-500.0,0.00021095,2]
[326563385,1715109090524,-1456.17,0.00021095,2]
[326563386,1715109090533,-1023.26,0.00021095,2]
[326563387,1715109090543,-1294.89,0.00021095,2]
[326563388,1715109090552,-2029.34,0.00021095,2]
[326563389,1715109090562,-500.0,0.00021095,2]
[326563390,1715109090571,-958.06,0.00021095,2]
[326563391,1715109090581,-3031.7,0.00021095,2]
[326563392,1715109090590,-1797.85,0.00021095,2]
[326563393,1715109090599,-500.0,0.00021095,2]
[326563394,1715109090614,-500.0,0.00021095,2]
[326563395,1715109090625,-500.0,0.00021095,2]
[326563396,1715109090634,-2598.21,0.00021095,2]
[326563397,1715109090644,-2329.42,0.00021095,2]
[326563398,1715109090654,-639.23,0.00021095,2]
[326563399,1715109090663,-1252.65,0.00021095,2]
[326563400,1715109090673,-867.36,0.00021095,2]
[326563401,1715109090683,-500.0,0.00021095,2]
[326563402,1715109090693,-1368.28,0.00021095,2]
[326563403,1715109090703,-1447.62,0.00021095,2]
[326563404,1715109090712,-1495.07,0.00021095,2]
[326563405,1715109090722,-1247.39,0.00021095,2]
[326563406,1715109090732,-2090.62,0.00021095,2]
[326563407,1715109090741,-334.64745023,0.00021095,2]
[326563408,1715109090751,-609.28,0.00021095,2]
[326563409,1715109090760,-500.0,0.00021095,2]
[326563410,1715109090771,-576.38,0.00021095,2]
[326563411,1715109090780,-4236.16,0.00021095,2]
[326563412,1715109090790,-500.0,0.00021095,2]
[326563413,1715109090802,-1443.45,0.00021095,2]
[326563414,1715109090813,-952.68,0.00021095,2]
[326563415,1715109090823,-500.0,0.00021095,2]
[326563416,1715109090833,-525.41,0.00021095,2]
[326563417,1715109090843,-4763.7,0.00021095,2]
[326563418,1715109090853,-4439.92,0.00021095,2]
[326563419,1715109090863,-690.08,0.00021095,2]
[326563420,1715109090873,-500.0,0.00021095,2]
[326563421,1715109090882,-2899.93,0.00021095,2]
[326563422,1715109090892,-2882.43483156,0.00021095,2]
[326563423,1715109091261,-331.09516844,0.00021095,2]
[326563424,1715109091272,-1469.01,0.00021095,2]
[326563425,1715109091282,-458.02027735,0.00021095,2]
[326563426,1715109091295,-1600.52972265,0.00021095,2]
[326563427,1715109091304,-500.0,0.00021095,2]
[326563428,1715109091314,-1807.87,0.00021095,2]
[326563429,1715109091323,-291.19759949,0.00021095,2]
[326563430,1715109091335,-446.72240051,0.00021095,2]
[326563431,1715109091344,-553.27759949,0.00021095,2]
[326563432,1715109091356,-467.26280354,0.00021095,2]
[326563433,1715109091368,-367.02959697,0.00021095,2]
[326563434,1715109091377,-919.82,0.00021095,2]
[326563435,1715109091388,-69.89009954,0.00021095,2]
[326563436,1715109091401,-1606.41088121,0.00021095,2]
[326563437,1715109091413,-660.42901925,0.00021095,2]
[326563438,1715109091424,-3045.65,0.00021095,2]
[326563439,1715109091433,-1092.73,0.00021095,2]
[326563440,1715109091444,-1691.25,0.00021095,2]
[326563441,1715109091454,-543.72,0.00021095,2]
[326563442,1715109091464,-1026.13,0.00021095,2]
[326563443,1715109091475,-2744.29,0.00021095,2]
[326563444,1715109091485,-1345.09,0.00021095,2]
[326563445,1715109091494,-3663.09,0.00021095,2]
[326563446,1715109091504,-571.79,0.00021095,2]
[326563447,1715109091513,-920.02,0.00021095,2]
[326563448,1715109091524,-501.52,0.000211,2]
[326563449,1715109091535,-1675.35893365,0.0002135,2]
[326563450,1715109091544,-59.13464905,0.00021369,2]
[326563451,1715109091556,-127.9560143,0.00021369,2]
[326563452,1715109091566,-500.0,0.00021369,2]
[326563453,1715109091575,-500.0,0.00021369,2]
[326563454,1715109091585,-500.0,0.00021369,2]
[326563455,1715109091594,-616.55,0.00021369,2]
[326563456,1715109091605,-609.92,0.00021369,2]
[326563457,1715109091617,-528.98,0.00021369,2]
[326563458,1715109091627,-637.67,0.00021369,2]
[326563459,1715109091636,-500.0,0.00021369,2]
[326563460,1715109091647,-961.86,0.00021369,2]
[326563461,1715109091657,-500.0,0.00021369,2]
[326563462,1715109091667,-516.31,0.00021369,2]
[326563463,1715109091676,-500.0,0.00021369,2]
[326563464,1715109091687,-500.0,0.00021369,2]
[326563465,1715109091697,-500.0,0.00021369,2]
[326563466,1715109091706,-500.0,0.00021369,2]
[326563467,1715109091716,-500.0,0.00021369,2]
[326563468,1715109091725,-500.0,0.00021369,2]
[326563469,1715109091736,-500.0,0.00021369,2]
[326563470,1715109091745,-208.32084021,0.00021369,2]
[326563471,1715109091755,-277.89769161,0.00021369,2]
[326563472,1715109091766,-500.0,0.00021369,2]
[326563473,1715109091777,-500.0,0.00021369,2]
[326563474,1715109091790,-500.0,0.00021369,2]
[326563475,1715109091802,-500.0,0.00021369,2]
[326563476,1715109091812,-500.0,0.00021369,2]
[326563477,1715109091821,-341.96,0.00021369,2]
[326563478,1715109091831,-500.0,0.00021369,2]
[326563479,1715109091841,-500.0,0.00021369,2]
[326563480,1715109091850,-500.0,0.00021369,2]
[326563481,1715109091862,-511.83,0.00021369,2]
[326563482,1715109091872,-640.82,0.00021369,2]
[326563483,1715109091881,-1296.96,0.00021369,2]
[326563484,1715109091891,-1039.89,0.00021369,2]
[326563485,1715109091900,-500.0,0.00021369,2]
[326563486,1715109091910,-1344.86,0.00021369,2]
[326563487,1715109091919,-510.16,0.00021369,2]
[326563488,1715109091929,-500.0,0.00021369,2]
[326563489,1715109091940,-500.0,0.00021369,2]
[326563490,1715109091951,-1140.53,0.00021369,2]
[326563491,1715109091960,-500.0,0.00021369,2]
[326563492,1715109091970,-500.0,0.00021369,2]
[326563493,1715109091980,-548.18,0.00021369,2]
[326563494,1715109091990,-500.0,0.00021369,2]
[326563495,1715109092000,-500.0,0.00021369,2]
[326563496,1715109092009,-500.0,0.00021369,2]
[326563497,1715109092022,-500.0,0.00021369,2]
[326563498,1715109092033,-587.62,0.00021369,2]
[326563499,1715109092042,-500.0,0.00021369,2]
[326563500,1715109092051,-500.0,0.00021369,2]
[326563501,1715109092061,-737.75,0.00021369,2]
[326563502,1715109092070,-500.0,0.00021369,2]
[326563503,1715109092080,-500.0,0.00021369,2]
[326563504,1715109092089,-500.0,0.00021369,2]
[326563505,1715109092099,-965.36,0.00021369,2]
[326563506,1715109092108,-500.0,0.00021369,2]
[326563507,1715109092118,-500.0,0.00021369,2]
[326563508,1715109092127,-500.0,0.00021369,2]
[326563509,1715109092137,-500.0,0.00021369,2]
[326563510,1715109092146,-772.42,0.00021369,2]
[326563511,1715109092156,-1277.92,0.00021369,2]
[326563512,1715109092164,-500.0,0.00021369,2]
[326563513,1715109092174,-412.0776662,0.00021369,2]
[326563514,1715109092184,-854.42,0.00021369,2]
[326563515,1715109092193,-634.37,0.00021369,2]
[326563516,1715109092202,-518.82,0.00021369,2]
[326563517,1715109092212,-834.2,0.00021369,2]
[326563518,1715109092221,-500.0,0.00021369,2]
[326563519,1715109092231,-500.0,0.00021369,2]
[326563520,1715109092240,-559.02,0.00021369,2]
[326563521,1715109092249,-500.0,0.00021369,2]
[326563522,1715109092258,-1295.25,0.00021369,2]
[326563523,1715109092268,-1379.17,0.00021369,2]
[326563524,1715109092279,-500.0,0.00021369,2]
[326563525,1715109092288,-500.0,0.00021369,2]
[326563526,1715109092297,-756.88,0.00021369,2]
[326563527,1715109092306,-1051.91,0.00021369,2]
[326563528,1715109092316,-605.72,0.00021369,2]
[326563529,1715109092325,-500.0,0.00021369,2]
[326563530,1715109092334,-500.0,0.00021369,2]
[326563531,1715109092344,-500.0,0.00021369,2]
[326563532,1715109092353,-830.22,0.00021369,2]
[326563533,1715109092362,-500.0,0.00021369,2]
[326563534,1715109092372,-1384.39,0.00021369,2]
[326563535,1715109092381,-500.0,0.00021369,2]
[326563536,1715109092391,-504.54,0.00021369,2]
[326563537,1715109092400,-675.32,0.00021369,2]
[326563538,1715109092410,-849.26,0.00021369,2]
[326563539,1715109092420,-964.69,0.00021369,2]
[326563540,1715109092429,-500.0,0.00021369,2]
[326563541,1715109092438,-775.4,0.00021369,2]
[326563542,1715109092448,-500.0,0.00021369,2]
[326563543,1715109092457,-642.62,0.00021369,2]
[326563544,1715109092467,-500.0,0.00021369,2]
[326563545,1715109092476,-1511.31,0.00021369,2]
[326563546,1715109092659,-500.0,0.00021369,2]
[326563547,1715109092668,-777.92,0.00021369,2]
[326563548,1715109092678,-1094.98,0.00021369,2]
[326563549,1715109092687,-751.54,0.00021369,2]
[326563550,1715109092696,-500.0,0.00021369,2]
[326563551,1715109092706,-413.2742863,0.00021369,2]
[326563552,1715109092716,-529.2,0.00021369,2]
[326563553,1715109092725,-824.9,0.00021369,2]
[326563554,1715109092734,-500.0,0.00021369,2]
[326563555,1715109092744,-500.0,0.00021369,2]
[326563556,1715109092753,-740.96,0.00021369,2]
[326563557,1715109092763,-500.0,0.00021369,2]
[326563558,1715109092773,-1194.81,0.00021369,2]
[326563559,1715109092782,-500.0,0.00021369,2]
[326563560,1715109092791,-500.0,0.00021369,2]
[326563561,1715109092802,-665.48,0.00021369,2]
[326563562,1715109092811,-500.0,0.00021369,2]
[326563563,1715109092821,-712.08,0.00021369,2]
[326563564,1715109092830,-500.0,0.00021369,2]
[326563565,1715109092840,-1308.28,0.00021369,2]
[326563566,1715109092849,-500.0,0.00021369,2]
[326563567,1715109092858,-531.86,0.00021369,2]
[326563568,1715109092868,-661.12,0.00021369,2]
[326563569,1715109092878,-500.0,0.00021369,2]
[326563570,1715109092888,-1409.45,0.00021369,2]
[326563571,1715109092897,-500.0,0.00021369,2]
[326563572,1715109092907,-500.0,0.00021369,2]
[326563573,1715109092916,-500.0,0.00021369,2]
[326563574,1715109092925,-500.0,0.00021369,2]
[326563575,1715109092934,-500.0,0.00021369,2]
[326563576,1715109092944,-1020.83,0.00021369,2]
[326563577,1715109092953,-500.0,0.00021369,2]
[326563578,1715109092962,-500.0,0.00021369,2]
[326563579,1715109092972,-500.0,0.00021369,2]
[326563580,1715109092981,-1414.86,0.00021369,2]
[326563581,1715109092990,-581.22052292,0.00021369,2]
[326563582,1715109092999,-500.0,0.00021369,2]
[326563583,1715109093009,-731.07,0.00021369,2]
[326563584,1715109093018,-500.0,0.00021369,2]
[326563585,1715109093029,-500.0,0.00021369,2]
[326563586,1715109093038,-711.26,0.00021369,2]
[326563587,1715109093047,-500.0,0.00021369,2]
[326563588,1715109093057,-1013.61,0.00021369,2]
[326563589,1715109093067,-500.0,0.00021369,2]
[326563590,1715109093076,-500.0,0.00021369,2]
[326563591,1715109093086,-500.0,0.00021369,2]
[326563592,1715109093095,-735.22,0.00021369,2]
[326563593,1715109093105,-500.0,0.00021369,2]
[326563594,1715109093114,-1169.14,0.00021369,2]
[326563595,1715109093123,-544.24,0.00021369,2]
[326563596,1715109093134,-1704.43,0.00021369,2]
[326563597,1715109093143,-500.0,0.00021369,2]
[326563598,1715109093152,-500.0,0.00021369,2]
[326563599,1715109093162,-538.08,0.00021369,2]
[326563600,1715109093171,-557.71,0.00021369,2]
[326563601,1715109093181,-193.36894413,0.00021369,2]
[326563602,1715109093190,-850.54,0.00021369,2]
[326563603,1715109093200,-500.0,0.00021369,2]
[326563604,1715109093209,-949.21,0.00021369,2]
[326563605,1715109093219,-500.0,0.00021369,2]
[326563606,1715109093229,-718.44,0.00021369,2]
[326563607,1715109093239,-3678.60990561,0.00021369,2]
[326563608,1715109093524,-499.99,0.00019349,2]
[326563609,1715109093533,-260.20999995,0.0002,2]
[326563610,1715109093545,-239.79000005,0.0002,2]
[326563611,1715109093555,-88.93413245,0.00020821,2]
[326563612,1715109093566,-465.68586755,0.00020821,2]
[326563613,1715109093576,-1021.63310804,0.00020821,2]
[326563614,1715109093588,-1020.18689196,0.00020821,2]
[326563615,1715109093597,-391.68536897,0.00021095,2]
[326563616,1715109093613,-162.93463103,0.00021095,2]
[326563617,1715109093623,-677.70929442,0.00021095,2]
[326563618,1715109093635,-501.98166091,0.00021095,2]
[326563619,1715109093838,-573.52,0.0002,2]
[326563620,1715109093847,-56.95,0.00021095,2]
[326563621,1715109093858,-565.8,0.00021095,2]
[326563622,1715109093869,-239.37904467,0.00021095,2]
[326563623,1715109093880,-1142.41009439,0.00021369,2]
[326563624,1715109093890,-500.0,0.00021369,2]
[326563625,1715109093899,-525.91744092,0.00021369,2]
[326563626,1715109093909,-1209.89,0.00021369,2]
[326563627,1715109093918,-521.54,0.00021369,2]
[326563628,1715109093927,-68.45675866,0.00021369,2]
[326563629,1715109093939,-431.54324134,0.00021369,2]
[326563630,1715109093948,-717.93,0.00021369,2]
[326563631,1715109093958,-500.0,0.00021369,2]
[326563632,1715109093967,-500.0,0.00021369,2]
[326563633,1715109093977,-500.0,0.00021369,2]
[326563634,1715109093987,-533.96,0.00021369,2]
[326563635,1715109093997,-928.47,0.00021369,2]
[326563636,1715109094006,-500.0,0.00021369,2]
[326563637,1715109094027,-857.36,0.00021369,2]
[326563638,1715109094041,-532.62,0.00021369,2]
[326563639,1715109094058,-2333.84,0.00021369,2]
[326563640,1715109094074,-678.25,0.00021369,2]
[326563641,1715109094091,-1851.61,0.00021369,2]
[326563642,1715109094110,-563.87,0.00021369,2]
[326563643,1715109094125,-500.0,0.00021369,2]
[326563644,1715109094141,-547.36,0.00021369,2]
[326563645,1715109094157,-500.0,0.00021369,2]
[326563646,1715109094171,-753.1,0.00021369,2]
[326563647,1715109094185,-500.0,0.00021369,2]
[326563648,1715109094202,-500.0,0.00021369,2]
[326563649,1715109094217,-1246.61,0.00021369,2]
[326563650,1715109094237,-1396.46,0.00021369,2]
[326563651,1715109094249,-523.32,0.00021369,2]
[326563652,1715109094261,-1222.09,0.00021369,2]
[326563653,1715109094279,-500.0,0.00021369,2]
[326563654,1715109094294,-1099.92,0.00021369,2]
[326563655,1715109094307,-3883.49,0.00021369,2]
[326563656,1715109094322,-500.0,0.00021369,2]
[326563657,1715109094335,-500.0,0.00021369,2]
[326563658,1715109094351,-419.70006787,0.00021369,2]
[326563659,1715109094364,-500.0,0.00021369,2]
[326563660,1715109094378,-1051.16,0.00021369,2]
[326563661,1715109094392,-500.0,0.00021369,2]
[326563662,1715109094407,-500.0,0.00021369,2]
[326563663,1715109094420,-798.3,0.00021369,2]
[326563664,1715109094434,-500.0,0.00021369,2]
[326563665,1715109094447,-1024.08,0.00021369,2]
[326563666,1715109094461,-500.0,0.00021369,2]
[326563667,1715109094474,-500.0,0.00021369,2]
[326563668,1715109094488,-572.78,0.00021369,2]
[326563669,1715109094502,-492.17668969,0.00021369,2]
[326563670,1715109094520,-3234.09331031,0.00021369,2]
[326563671,1715109094536,-500.0,0.00021369,2]
[326563672,1715109094549,-500.0,0.00021369,2]
[326563673,1715109094563,-500.0,0.00021369,2]
[326563674,1715109094577,-500.0,0.00021369,2]
[326563675,1715109094590,-500.0,0.00021369,2]
[326563676,1715109094604,-500.0,0.00021369,2]
[326563677,1715109094622,-500.0,0.00021369,2]
[326563678,1715109094636,-1075.66,0.00021369,2]
[326563679,1715109094649,-500.0,0.00021369,2]
[326563680,1715109094662,-1074.47,0.00021369,2]
[326563681,1715109094676,-614.33,0.00021369,2]
[326563682,1715109094690,-1390.99,0.00021369,2]
[326563683,1715109094704,-500.0,0.00021369,2]
[326563684,1715109094719,-1067.93,0.00021369,2]
[326563685,1715109094732,-500.0,0.00021369,2]
[326563686,1715109094747,-828.77,0.00021369,2]
[326563687,1715109094761,-931.21,0.00021369,2]
[326563688,1715109094775,-500.0,0.00021369,2]
[326563689,1715109094788,-500.57,0.00021369,2]
[326563690,1715109094804,-315.02705808,0.00021369,2]
[326563691,1715109094819,-500.0,0.00021369,2]
[326563692,1715109094833,-240.27834624,0.00021369,2]
[326563693,1715109094849,-500.0,0.00021369,2]
[326563694,1715109094862,-500.0,0.00021369,2]
[326563695,1715109094874,-544.9,0.00021369,2]
[326563696,1715109094884,-793.32,0.00021369,2]
[326563697,1715109094894,-500.0,0.00021369,2]
[326563698,1715109094903,-780.63040037,0.00021369,2]
[326563699,1715109094916,-220.99959963,0.00021369,2]
[326563700,1715109094925,-195.21626013,0.00021369,2]
[326563701,1715109094935,-659.12,0.00021369,2]
[326563702,1715109094944,-500.0,0.00021369,2]
[326563703,1715109094954,-500.0,0.00021369,2]
[326563704,1715109094964,-500.0,0.00021369,2]
[326563705,1715109094974,-876.42,0.00021369,2]
[326563706,1715109094984,-500.0,0.00021369,2]
[326563707,1715109094994,-500.0,0.00021369,2]
[326563708,1715109095005,-1263.96463221,0.00021369,2]
[326563709,1715109095017,-328.68536779,0.00021369,2]
[326563710,1715109095029,-271.91463221,0.00021369,2]
[326563711,1715109095041,-1110.99536779,0.00021369,2]
[326563712,1715109095051,-575.18,0.00021369,2]
[326563713,1715109095062,-676.71,0.00021369,2]
[326563714,1715109095071,-677.53,0.00021369,2]
[326563715,1715109095081,-892.36,0.00021369,2]
[326563716,1715109095091,-809.83,0.00021369,2]
[326563717,1715109095101,-798.52,0.00021369,2]
[326563718,1715109095111,-500.0,0.00021369,2]
[326563719,1715109095121,-540.05,0.00021369,2]
[326563720,1715109095132,-2338.12,0.00021369,2]
[326563721,1715109095142,-500.0,0.00021369,2]
[326563722,1715109095152,-627.88,0.00021369,2]
[326563723,1715109095161,-582.92,0.00021369,2]
[326563724,1715109095171,-712.06,0.00021369,2]
[326563725,1715109095181,-1209.49,0.00021369,2]
[326563726,1715109095191,-500.0,0.00021369,2]
[326563727,1715109095202,-624.93,0.00021369,2]
[326563728,1715109095211,-500.0,0.00021369,2]
[326563729,1715109095222,-506.15,0.00021369,2]
[326563730,1715109095232,-1481.7,0.00021369,2]
[326563731,1715109095243,-500.0,0.00021369,2]
[326563732,1715109095253,-500.0,0.00021369,2]
[326563733,1715109095263,-803.02,0.00021369,2]
[326563734,1715109095273,-1227.85,0.00021369,2]
[326563735,1715109095283,-541.87,0.00021369,2]
[326563736,1715109095293,-532.75,0.00021369,2]
[326563737,1715109095304,-1085.64,0.00021369,2]
[326563738,1715109095314,-563.22,0.00021369,2]
[326563739,1715109095325,-500.0,0.00021369,2]
[326563740,1715109095334,-1105.8,0.00021369,2]
[326563741,1715109095343,-500.0,0.00021369,2]
[326563742,1715109095353,-979.3,0.00021369,2]
[326563743,1715109095362,-4048.48606847,0.00021369,2]
[326563744,1715109095375,-1041.4084361,0.00021369,2]
[326563745,1715109095386,-610.20549543,0.00021369,2]
[326563746,1715109095396,-500.0,0.00021369,2]
[326563747,1715109095406,-1106.3,0.00021369,2]
[326563748,1715109095416,-1297.44,0.00021369,2]
[326563749,1715109095426,-500.0,0.00021369,2]
[326563750,1715109095436,-1432.86,0.00021369,2]
[326563751,1715109095446,-500.0,0.00021369,2]
[326563752,1715109095455,-500.0,0.00021369,2]
[326563753,1715109095465,-1779.56,0.00021369,2]
[326563754,1715109095475,-748.56,0.00021369,2]
[326563755,1715109095485,-4338.05,0.00021369,2]
[326563756,1715109095494,-2714.86,0.00021369,2]
[326563757,1715109095504,-500.0,0.00021369,2]
[326563758,1715109095514,-500.0,0.00021369,2]
[326563759,1715109095525,-501.29,0.00021369,2]
[326563760,1715109095534,-2987.38,0.00021369,2]
[326563761,1715109095543,-1056.34,0.00021369,2]
[326563762,1715109095553,-1534.13,0.00021369,2]
[326563763,1715109095563,-896.06,0.00021369,2]
[326563764,1715109095573,-1535.14,0.00021369,2]
[326563765,1715109095583,-500.0,0.00021369,2]
[326563766,1715109095593,-500.0,0.00021369,2]
[326563767,1715109095603,-500.0,0.00021369,2]
[326563768,1715109095617,-1016.39,0.00021369,2]
[326563769,1715109095626,-500.0,0.00021369,2]
[326563770,1715109095636,-839.24,0.00021369,2]
[326563771,1715109095647,-3365.77,0.00021369,2]
[326563772,1715109095657,-17937.6,0.00021369,2]
[326563773,1715109095666,-1219.46,0.00021369,2]
[326563774,1715109096179,-500.0,0.00021369,2]
[326563775,1715109096202,-500.0,0.00021369,2]
[326563776,1715109096219,-500.0,0.00021369,2]
[326563777,1715109096237,-1074.92,0.00021369,2]
[326563778,1715109096249,-767.65,0.00021369,2]
[326563779,1715109096258,-500.0,0.00021369,2]
[326563780,1715109096267,-500.0,0.00021369,2]
[326563781,1715109096278,-3466.46,0.00021369,2]
[326563782,1715109096287,-1717.75,0.00021369,2]
[326563783,1715109096296,-500.0,0.00021369,2]
[326563784,1715109096306,-500.0,0.00021369,2]
[326563785,1715109096316,-500.0,0.00021369,2]
[326563786,1715109096325,-1168.98,0.00021369,2]
[326563787,1715109096335,-946.47,0.00021369,2]
[326563788,1715109096344,-3939.72,0.00021369,2]
[326563789,1715109096354,-622.4,0.00021369,2]
[326563790,1715109096364,-9068.98,0.00021369,2]
[326563791,1715109096373,-2099.47,0.00021369,2]
[326563792,1715109096383,-660.56,0.00021369,2]
[326563793,1715109096392,-975.09,0.00021369,2]
[326563794,1715109096401,-7823.11,0.00021369,2]
[326563795,1715109096411,-3638.35,0.00021369,2]
[326563796,1715109096420,-2517.85,0.00021369,2]
[326563797,1715109096430,-3443.28,0.00021369,2]
[326563798,1715109096439,-500.0,0.00021369,2]
[326563799,1715109096448,-500.0,0.00021369,2]
[326563800,1715109096458,-626.56,0.00021369,2]
[326563801,1715109096467,-500.0,0.00021369,2]
[326563802,1715109096476,-500.0,0.00021369,2]
[326563803,1715109096485,-500.0,0.00021369,2]
[326563804,1715109096495,-862.97,0.00021369,2]
[326563805,1715109096504,-1652.38,0.00021369,2]
[326563806,1715109096514,-2159.29,0.00021369,2]
[326563807,1715109096523,-669.45,0.00021369,2]
[326563808,1715109096534,-500.0,0.00021369,2]
[326563809,1715109096544,-500.0,0.00021369,2]
[326563810,1715109096554,-500.0,0.00021369,2]
[326563811,1715109096564,-544.82,0.00021369,2]
[326563812,1715109096573,-541.77,0.00021369,2]
[326563813,1715109096583,-500.0,0.00021369,2]
[326563814,1715109096594,-558.7,0.00021369,2]
[326563815,1715109096603,-626.2,0.00021369,2]
[326563816,1715109096617,-848.65,0.00021369,2]
[326563817,1715109096626,-1005.88,0.00021369,2]
[326563818,1715109096636,-13278.13,0.00021369,2]
[326563819,1715109096647,-500.0,0.00021369,2]
[326563820,1715109096657,-500.0,0.00021369,2]